[Event "Titled Tuesday Blitz December 06 Early 2022"]
[White "Shubenkova, Veronika"]
[Black "Flis, Pawel"]
[WhiteFideId "44124040"]
[BlackFideId "1112864"]
[WhiteElo "2027"]
[BlackElo "1817"]
[Result "1-0"]
[Round "02"]
[TimeControl "180+1"]
[Date "2022.12.07"]
[WhiteClock "0:01:44"]
[BlackClock "0:00:01"]

1. e4 {[%clk 0:03:00]}  c5 {[%clk 0:02:51]} 2. Nc3 {[%clk 0:02:58]}  d6 {[%clk 0:02:48]} 3. g3 {[%clk 0:02:57]}  Nc6 {[%clk 0:02:46]} 4. Bg2 {[%clk 0:02:57]}  g6 {[%clk 0:02:46]} 5. f4 {[%clk 0:02:57]}  Bg7 {[%clk 0:02:46]} 6. Nf3 {[%clk 0:02:58]}  e6 {[%clk 0:02:47]} 7. d3 {[%clk 0:02:58]}  Nge7 {[%clk 0:02:48]} 8. Be3 {[%clk 0:02:58]}  Rb8 {[%clk 0:02:46]} 9. Rb1 {[%clk 0:02:59]}  b5 {[%clk 0:02:46]} 10. O-O {[%clk 0:02:58]}  O-O {[%clk 0:02:44]} 11. Ne2 {[%clk 0:02:57]}  b4 {[%clk 0:02:42]} 12. d4 {[%clk 0:02:57]}  cxd4 {[%clk 0:02:40]} 13. Nexd4 {[%clk 0:02:56]}  Nxd4 {[%clk 0:02:40]} 14. Nxd4 {[%clk 0:02:55]}  Qa5 {[%clk 0:02:08]} 15. Nb3 {[%clk 0:02:42]}  Qc7 {[%clk 0:01:53]} 16. Rf2 {[%clk 0:02:40]}  Bb7 {[%clk 0:01:41]} 17. Rd2 {[%clk 0:02:37]}  Rfd8 {[%clk 0:01:41]} 18. Qe2 {[%clk 0:02:35]}  a5 {[%clk 0:01:36]} 19. Nd4 {[%clk 0:02:32]}  d5 {[%clk 0:01:16]} 20. e5 {[%clk 0:02:29]}  Rbc8 {[%clk 0:00:45]} 21. Nb5 {[%clk 0:02:27]}  Qc4 {[%clk 0:00:43]} 22. Nd6 {[%clk 0:02:25]}  Qxe2 {[%clk 0:00:41]} 23. Rxe2 {[%clk 0:02:24]}  Rb8 {[%clk 0:00:41]} 24. c3 {[%clk 0:02:21]}  Nc8 {[%clk 0:00:39]} 25. Nxb7 {[%clk 0:02:11]}  Rxb7 {[%clk 0:00:39]} 26. c4 {[%clk 0:02:10]}  Ne7 {[%clk 0:00:33]} 27. Bc5 {[%clk 0:02:09]}  Rdd7 {[%clk 0:00:24]} 28. Bxe7 {[%clk 0:02:07]}  Rxe7 {[%clk 0:00:23]} 29. cxd5 {[%clk 0:02:06]}  exd5 {[%clk 0:00:23]} 30. Bxd5 {[%clk 0:02:06]}  Rbd7 {[%clk 0:00:24]} 31. Bc6 {[%clk 0:02:06]}  Rd4 {[%clk 0:00:22]} 32. Bf3 {[%clk 0:02:05]}  Red7 {[%clk 0:00:20]} 33. Rc1 {[%clk 0:02:04]}  h5 {[%clk 0:00:19]} 34. Rc8+ {[%clk 0:02:02]}  Kh7 {[%clk 0:00:18]} 35. Kg2 {[%clk 0:02:02]}  Rd2 {[%clk 0:00:18]} 36. Rc2 {[%clk 0:01:59]}  Rxe2+ {[%clk 0:00:17]} 37. Rxe2 {[%clk 0:01:58]}  Bf8 {[%clk 0:00:17]} 38. Be4 {[%clk 0:01:57]}  Kg7 {[%clk 0:00:17]} 39. f5 {[%clk 0:01:57]}  gxf5 {[%clk 0:00:14]} 40. Bxf5 {[%clk 0:01:57]}  Rd5 {[%clk 0:00:12]} 41. h3 {[%clk 0:01:57]}  Bc5 {[%clk 0:00:11]} 42. g4 {[%clk 0:01:56]}  hxg4 {[%clk 0:00:11]} 43. Bxg4 {[%clk 0:01:54]}  Bd4 {[%clk 0:00:11]} 44. e6 {[%clk 0:01:52]}  fxe6 {[%clk 0:00:10]} 45. Bxe6 {[%clk 0:01:52]}  Rg5+ {[%clk 0:00:09]} 46. Kf3 {[%clk 0:01:51]}  Re5 {[%clk 0:00:08]} 47. Rg2+ {[%clk 0:01:51]}  Kf6 {[%clk 0:00:08]} 48. Bc4 {[%clk 0:01:48]}  Rg5 {[%clk 0:00:03]} 49. Rd2 {[%clk 0:01:46]}  Be5 {[%clk 0:00:02]} 50. b3 {[%clk 0:01:45]}  Rh5 {[%clk 0:00:01]} 51. Kg4 {[%clk 0:01:44]} 1-0


[Site "https://www.chess.com"]

[Event "Titled Tuesday Blitz December 06 Early 2022"]
[White "Simonovic, Miroslav"]
[Black "Barria Zuniga, Daniel"]
[WhiteFideId "919152"]
[BlackFideId "3400816"]
[WhiteElo "2057"]
[BlackElo "2414"]
[Result "0-1"]
[Round "02"]
[TimeControl "180+1"]
[Date "2022.12.07"]
[WhiteClock "0:01:04"]
[BlackClock "0:02:00"]

1. d4 {[%clk 0:03:00]}  g6 {[%clk 0:02:56]} 2. h4 {[%clk 0:03:00]}  h5 {[%clk 0:02:55]} 3. Bg5 {[%clk 0:02:59]}  Bg7 {[%clk 0:02:55]} 4. c4 {[%clk 0:02:58]}  c5 {[%clk 0:02:54]} 5. e3 {[%clk 0:02:58]}  Nf6 {[%clk 0:02:54]} 6. Nc3 {[%clk 0:02:57]}  O-O {[%clk 0:02:55]} 7. Bxf6 {[%clk 0:02:45]}  Bxf6 {[%clk 0:02:54]} 8. Nf3 {[%clk 0:02:46]}  Bg7 {[%clk 0:02:46]} 9. Qd2 {[%clk 0:02:45]}  Nc6 {[%clk 0:02:41]} 10. d5 {[%clk 0:02:38]}  Ne5 {[%clk 0:02:38]} 11. Nxe5 {[%clk 0:02:36]}  Bxe5 {[%clk 0:02:39]} 12. Bd3 {[%clk 0:02:30]}  d6 {[%clk 0:02:38]} 13. O-O-O {[%clk 0:02:22]}  a6 {[%clk 0:02:33]} 14. f4 {[%clk 0:02:21]}  Bg7 {[%clk 0:02:32]} 15. Ne4 {[%clk 0:02:15]}  b5 {[%clk 0:02:30]} 16. Ng5 {[%clk 0:02:09]}  bxc4 {[%clk 0:02:24]} 17. Bxc4 {[%clk 0:02:08]}  a5 {[%clk 0:02:12]} 18. Bd3 {[%clk 0:01:58]}  Rb8 {[%clk 0:02:09]} 19. b3 {[%clk 0:01:55]}  a4 {[%clk 0:02:09]} 20. Qc2 {[%clk 0:01:40]}  axb3 {[%clk 0:02:07]} 21. axb3 {[%clk 0:01:41]}  Qa5 {[%clk 0:02:06]} 22. Bxg6 {[%clk 0:01:41]}  fxg6 {[%clk 0:02:05]} 23. Qxg6 {[%clk 0:01:32]}  Bf5 {[%clk 0:02:04]} 24. Qxh5 {[%clk 0:01:04]}  Qc3# {[%clk 0:02:00]} 0-1


[Site "https://www.chess.com"]

[Event "Titled Tuesday Blitz December 06 Early 2022"]
[White "Skliarov, Viktor"]
[Black "Sarana, Alexey"]
[WhiteFideId "14106736"]
[BlackFideId "24133795"]
[WhiteElo "2284"]
[BlackElo "2708"]
[Result "0-1"]
[Round "02"]
[TimeControl "180+1"]
[Date "2022.12.06"]
[WhiteClock "0:00:06"]
[BlackClock "0:00:06"]

1. e4 {[%clk 0:03:00]}  c5 {[%clk 0:03:00]} 2. Nf3 {[%clk 0:03:00]}  d6 {[%clk 0:03:00]} 3. d4 {[%clk 0:03:00]}  cxd4 {[%clk 0:03:01]} 4. Qxd4 {[%clk 0:03:00]}  Nc6 {[%clk 0:03:00]} 5. Bb5 {[%clk 0:03:01]}  Bd7 {[%clk 0:03:01]} 6. Bxc6 {[%clk 0:03:02]}  Bxc6 {[%clk 0:03:02]} 7. Nc3 {[%clk 0:03:02]}  Nf6 {[%clk 0:02:59]} 8. Bg5 {[%clk 0:03:02]}  e6 {[%clk 0:03:00]} 9. O-O-O {[%clk 0:03:02]}  Be7 {[%clk 0:03:00]} 10. Rhe1 {[%clk 0:03:02]}  Qb6 {[%clk 0:02:59]} 11. Qd2 {[%clk 0:02:58]}  O-O {[%clk 0:02:57]} 12. Kb1 {[%clk 0:02:57]}  Rfd8 {[%clk 0:02:54]} 13. Nd4 {[%clk 0:02:57]}  h6 {[%clk 0:02:51]} 14. Bh4 {[%clk 0:02:52]}  Rac8 {[%clk 0:02:45]} 15. f3 {[%clk 0:02:33]}  Be8 {[%clk 0:02:14]} 16. Bf2 {[%clk 0:02:29]}  Qa6 {[%clk 0:01:58]} 17. g4 {[%clk 0:02:23]}  b5 {[%clk 0:01:59]} 18. h4 {[%clk 0:02:22]}  b4 {[%clk 0:01:55]} 19. Nce2 {[%clk 0:02:20]}  Nd7 {[%clk 0:01:38]} 20. g5 {[%clk 0:02:14]}  h5 {[%clk 0:01:38]} 21. g6 {[%clk 0:01:59]}  Ne5 {[%clk 0:01:37]} 22. gxf7+ {[%clk 0:01:59]}  Bxf7 {[%clk 0:01:38]} 23. Rg1 {[%clk 0:01:53]}  Bf6 {[%clk 0:01:28]} 24. Qc1 {[%clk 0:01:33]}  d5 {[%clk 0:01:23]} 25. f4 {[%clk 0:01:26]}  Ng4 {[%clk 0:01:22]} 26. Rxg4 {[%clk 0:01:07]}  hxg4 {[%clk 0:01:22]} 27. e5 {[%clk 0:01:07]}  Be7 {[%clk 0:01:22]} 28. f5 {[%clk 0:01:03]}  exf5 {[%clk 0:01:20]} 29. Nxf5 {[%clk 0:00:57]}  Bf8 {[%clk 0:01:20]} 30. Ned4 {[%clk 0:00:52]}  Re8 {[%clk 0:01:07]} 31. Qf4 {[%clk 0:00:45]}  Bh5 {[%clk 0:00:50]} 32. Ng3 {[%clk 0:00:31]}  Qg6 {[%clk 0:00:48]} 33. Nxh5 {[%clk 0:00:23]}  Qxh5 {[%clk 0:00:48]} 34. Bg3 {[%clk 0:00:24]}  Bc5 {[%clk 0:00:45]} 35. Nb5 {[%clk 0:00:21]}  Qg6 {[%clk 0:00:39]} 36. h5 {[%clk 0:00:13]}  Qxh5 {[%clk 0:00:38]} 37. Nd6 {[%clk 0:00:09]}  Bxd6 {[%clk 0:00:34]} 38. exd6 {[%clk 0:00:10]}  Qg6 {[%clk 0:00:33]} 39. Qd2 {[%clk 0:00:09]}  Red8 {[%clk 0:00:29]} 40. Qxd5+ {[%clk 0:00:08]}  Qf7 {[%clk 0:00:28]} 41. Qd3 {[%clk 0:00:08]}  Rc5 {[%clk 0:00:21]} 42. a3 {[%clk 0:00:07]}  a5 {[%clk 0:00:19]} 43. axb4 {[%clk 0:00:06]}  axb4 {[%clk 0:00:20]} 44. Bh4 {[%clk 0:00:05]}  Rd7 {[%clk 0:00:20]} 45. Be7 {[%clk 0:00:05]}  Ra5 {[%clk 0:00:19]} 46. Kc1 {[%clk 0:00:04]}  Ra1+ {[%clk 0:00:18]} 47. Kd2 {[%clk 0:00:04]}  Qf4+ {[%clk 0:00:08]} 48. Ke2 {[%clk 0:00:04]}  Qh2+ {[%clk 0:00:07]} 49. Ke3 {[%clk 0:00:05]}  Qe5+ {[%clk 0:00:07]} 50. Kf2 {[%clk 0:00:04]}  Qf4+ {[%clk 0:00:08]} 51. Ke2 {[%clk 0:00:04]}  Qf3+ {[%clk 0:00:07]} 52. Qxf3 {[%clk 0:00:03]}  gxf3+ {[%clk 0:00:08]} 53. Kd2 {[%clk 0:00:04]}  Rxd1+ {[%clk 0:00:03]} 54. Kxd1 {[%clk 0:00:04]}  g5 {[%clk 0:00:04]} 55. Ke1 {[%clk 0:00:04]}  g4 {[%clk 0:00:04]} 56. Kf2 {[%clk 0:00:05]}  Kf7 {[%clk 0:00:05]} 57. c4 {[%clk 0:00:05]}  bxc3 {[%clk 0:00:04]} 58. bxc3 {[%clk 0:00:06]}  Rxe7 {[%clk 0:00:05]} 59. dxe7 {[%clk 0:00:06]}  Kxe7 {[%clk 0:00:06]} 0-1


[Site "https://www.chess.com"]

[Event "Titled Tuesday Blitz December 06 Early 2022"]
[White "Slovineanu"]
[Black "Csonka, Balazs"]
[BlackFideId "742910"]
[WhiteElo "2222"]
[BlackElo "2404"]
[Result "0-1"]
[Round "02"]
[TimeControl "180+1"]
[Date "2022.12.07"]
[WhiteClock "0:00:12"]
[BlackClock "0:00:03"]

1. d4 {[%clk 0:02:55]}  d5 {[%clk 0:02:56]} 2. Nf3 {[%clk 0:02:55]}  Nf6 {[%clk 0:02:56]} 3. c4 {[%clk 0:02:54]}  e6 {[%clk 0:02:56]} 4. e3 {[%clk 0:02:54]}  b6 {[%clk 0:02:53]} 5. b3 {[%clk 0:02:53]}  Bb7 {[%clk 0:02:50]} 6. Bd3 {[%clk 0:02:53]}  Bd6 {[%clk 0:02:47]} 7. O-O {[%clk 0:02:51]}  O-O {[%clk 0:02:46]} 8. Bb2 {[%clk 0:02:50]}  Nbd7 {[%clk 0:02:45]} 9. Nc3 {[%clk 0:02:50]}  a6 {[%clk 0:02:36]} 10. Rc1 {[%clk 0:02:49]}  Ne4 {[%clk 0:02:30]} 11. Ne2 {[%clk 0:02:36]}  f5 {[%clk 0:02:01]} 12. Ng3 {[%clk 0:02:35]}  Qe7 {[%clk 0:01:47]} 13. Qe2 {[%clk 0:02:29]}  Rf6 {[%clk 0:01:29]} 14. Rc2 {[%clk 0:02:15]}  a5 {[%clk 0:01:26]} 15. Rfc1 {[%clk 0:02:12]}  Rh6 {[%clk 0:01:19]} 16. cxd5 {[%clk 0:01:58]}  Bxd5 {[%clk 0:01:20]} 17. Rxc7 {[%clk 0:01:49]}  Bxc7 {[%clk 0:01:17]} 18. Rxc7 {[%clk 0:01:49]}  Nxg3 {[%clk 0:00:56]} 19. hxg3 {[%clk 0:01:38]}  Qd6 {[%clk 0:00:56]} 20. Qc2 {[%clk 0:01:32]}  Rf8 {[%clk 0:00:55]} 21. Qc1 {[%clk 0:01:19]}  Bxf3 {[%clk 0:00:25]} 22. gxf3 {[%clk 0:01:16]}  Qd5 {[%clk 0:00:21]} 23. Kg2 {[%clk 0:01:06]}  Ne5 {[%clk 0:00:17]} 24. e4 {[%clk 0:00:46]}  Nxd3 {[%clk 0:00:15]} 25. exd5 {[%clk 0:00:40]}  Nxc1 {[%clk 0:00:14]} 26. Bxc1 {[%clk 0:00:38]}  Rhf6 {[%clk 0:00:14]} 27. d6 {[%clk 0:00:34]}  R6f7 {[%clk 0:00:09]} 28. Rc6 {[%clk 0:00:29]}  Rb7 {[%clk 0:00:09]} 29. Bf4 {[%clk 0:00:29]}  Rd8 {[%clk 0:00:08]} 30. Be5 {[%clk 0:00:29]}  Kf7 {[%clk 0:00:08]} 31. g4 {[%clk 0:00:22]}  g6 {[%clk 0:00:07]} 32. Kg3 {[%clk 0:00:22]}  Ke8 {[%clk 0:00:08]} 33. Kf4 {[%clk 0:00:20]}  Kd7 {[%clk 0:00:08]} 34. Rc3 {[%clk 0:00:18]}  Rc8 {[%clk 0:00:08]} 35. Rc7+ {[%clk 0:00:17]}  Rbxc7 {[%clk 0:00:08]} 36. dxc7 {[%clk 0:00:18]}  h6 {[%clk 0:00:06]} 37. Ke3 {[%clk 0:00:15]}  Kc6 {[%clk 0:00:04]} 38. Kf4 {[%clk 0:00:15]}  Kd5 {[%clk 0:00:04]} 39. Kg3 {[%clk 0:00:15]}  Kc6 {[%clk 0:00:03]} 40. Kf4 {[%clk 0:00:15]}  Kd7 {[%clk 0:00:03]} 41. a4 {[%clk 0:00:15]}  Rg8 {[%clk 0:00:01]} 42. Kg3 {[%clk 0:00:14]}  h5 {[%clk 0:00:02]} 43. gxh5 {[%clk 0:00:13]}  gxh5+ {[%clk 0:00:02]} 44. Kh4 {[%clk 0:00:13]}  Rg2 {[%clk 0:00:03]} 45. Kxh5 {[%clk 0:00:14]}  Rxf2 {[%clk 0:00:03]} 46. Kg5 {[%clk 0:00:13]}  Rxf3 {[%clk 0:00:02]} 47. Kf6 {[%clk 0:00:14]}  Rxb3 {[%clk 0:00:02]} 48. c8=Q+ {[%clk 0:00:13]}  Kxc8 {[%clk 0:00:02]} 49. Kxe6 {[%clk 0:00:14]}  Rb4 {[%clk 0:00:02]} 50. d5 {[%clk 0:00:14]}  f4 {[%clk 0:00:02]} 51. d6 {[%clk 0:00:14]}  Re4 {[%clk 0:00:01]} 52. Kd5 {[%clk 0:00:11]}  Rxe5+ {[%clk 0:00:02]} 53. Kxe5 {[%clk 0:00:11]}  f3 {[%clk 0:00:03]} 54. Ke6 {[%clk 0:00:12]}  Kd8 {[%clk 0:00:03]} 0-1


[Site "https://www.chess.com"]

[Event "Titled Tuesday Blitz December 06 Early 2022"]
[White "Szyszylo, Rafal"]
[Black "Mikaelyan, Arman"]
[WhiteFideId "1109626"]
[BlackFideId "13304852"]
[WhiteElo "1981"]
[BlackElo "2456"]
[Result "0-1"]
[Round "02"]
[TimeControl "180+1"]
[Date "2022.12.07"]
[WhiteClock "0:00:02"]
[BlackClock "0:00:03"]

1. e4 {[%clk 0:03:00]}  c5 {[%clk 0:02:58]} 2. Nf3 {[%clk 0:03:00]}  Nc6 {[%clk 0:02:59]} 3. Bb5 {[%clk 0:03:00]}  e6 {[%clk 0:02:59]} 4. O-O {[%clk 0:02:59]}  Nge7 {[%clk 0:02:59]} 5. c3 {[%clk 0:02:59]}  d5 {[%clk 0:02:48]} 6. exd5 {[%clk 0:02:57]}  Qxd5 {[%clk 0:02:49]} 7. d4 {[%clk 0:02:56]}  cxd4 {[%clk 0:02:50]} 8. c4 {[%clk 0:02:52]}  Qd6 {[%clk 0:02:44]} 9. Qxd4 {[%clk 0:02:50]}  Qxd4 {[%clk 0:02:35]} 10. Nxd4 {[%clk 0:02:51]}  Bd7 {[%clk 0:02:36]} 11. Nxc6 {[%clk 0:02:49]}  Nxc6 {[%clk 0:02:37]} 12. Nc3 {[%clk 0:02:47]}  a6 {[%clk 0:02:26]} 13. Ba4 {[%clk 0:02:46]}  Bb4 {[%clk 0:02:09]} 14. Rd1 {[%clk 0:02:41]}  Ke7 {[%clk 0:02:03]} 15. Ne4 {[%clk 0:02:38]}  f5 {[%clk 0:02:00]} 16. Bg5+ {[%clk 0:02:37]}  Ke8 {[%clk 0:01:56]} 17. Nd6+ {[%clk 0:02:33]}  Bxd6 {[%clk 0:01:55]} 18. Rxd6 {[%clk 0:02:34]}  h6 {[%clk 0:01:54]} 19. Rad1 {[%clk 0:02:15]}  hxg5 {[%clk 0:01:31]} 20. Rxd7 {[%clk 0:02:15]}  b5 {[%clk 0:00:28]} 21. cxb5 {[%clk 0:02:13]}  Ne5 {[%clk 0:00:29]} 22. Rxg7 {[%clk 0:02:06]}  Kf8 {[%clk 0:00:26]} 23. Rb7 {[%clk 0:01:56]}  Rh4 {[%clk 0:00:24]} 24. Bb3 {[%clk 0:01:50]}  axb5 {[%clk 0:00:16]} 25. Bxe6 {[%clk 0:01:48]}  f4 {[%clk 0:00:13]} 26. f3 {[%clk 0:01:39]}  Rh6 {[%clk 0:00:12]} 27. Bb3 {[%clk 0:01:36]}  Nc4 {[%clk 0:00:12]} 28. Rdd7 {[%clk 0:01:25]}  Re6 {[%clk 0:00:09]} 29. h4 {[%clk 0:01:15]}  g4 {[%clk 0:00:06]} 30. fxg4 {[%clk 0:01:12]}  Re1+ {[%clk 0:00:07]} 31. Kf2 {[%clk 0:01:11]}  Rb1 {[%clk 0:00:07]} 32. Bxc4 {[%clk 0:01:05]}  bxc4 {[%clk 0:00:08]} 33. Rh7 {[%clk 0:00:58]}  Kg8 {[%clk 0:00:08]} 34. Rbg7+ {[%clk 0:00:58]}  Kf8 {[%clk 0:00:08]} 35. Rh8+ {[%clk 0:00:56]}  Kxg7 {[%clk 0:00:08]} 36. Rxa8 {[%clk 0:00:57]}  Rxb2+ {[%clk 0:00:07]} 37. Kf3 {[%clk 0:00:57]}  c3 {[%clk 0:00:07]} 38. Kxf4 {[%clk 0:00:53]}  Rb4+ {[%clk 0:00:04]} 39. Kg5 {[%clk 0:00:12]}  Rb5+ {[%clk 0:00:05]} 40. Kf4 {[%clk 0:00:12]}  Rc5 {[%clk 0:00:06]} 41. Re8 {[%clk 0:00:04]}  c2 {[%clk 0:00:06]} 42. Re1 {[%clk 0:00:05]}  c1=Q+ {[%clk 0:00:05]} 43. Rxc1 {[%clk 0:00:06]}  Rxc1 {[%clk 0:00:06]} 44. h5 {[%clk 0:00:05]}  Rc2 {[%clk 0:00:05]} 45. g3 {[%clk 0:00:05]}  Rxa2 {[%clk 0:00:05]} 46. g5 {[%clk 0:00:05]}  Ra4+ {[%clk 0:00:05]} 47. Kf5 {[%clk 0:00:04]}  Ra5+ {[%clk 0:00:05]} 48. Kg4 {[%clk 0:00:04]}  Rb5 {[%clk 0:00:04]} 49. Kf4 {[%clk 0:00:04]}  Rb4+ {[%clk 0:00:04]} 50. Kf5 {[%clk 0:00:04]}  Rb5+ {[%clk 0:00:05]} 51. Kf4 {[%clk 0:00:05]}  Kf7 {[%clk 0:00:05]} 52. g4 {[%clk 0:00:05]}  Ke6 {[%clk 0:00:05]} 53. h6 {[%clk 0:00:04]}  Kf7 {[%clk 0:00:04]} 54. h7 {[%clk 0:00:04]}  Kg7 {[%clk 0:00:04]} 55. g6 {[%clk 0:00:01]}  Ra5 {[%clk 0:00:05]} 56. g5 {[%clk 0:00:01]}  Ra1 {[%clk 0:00:04]} 57. Kf5 {[%clk 0:00:01]}  Rg1 {[%clk 0:00:03]} 58. Kf4 {[%clk 0:00:01]}  Rf1+ {[%clk 0:00:02]} 59. Kg4 {[%clk 0:00:01]}  Rh1 {[%clk 0:00:03]} 60. Kf5 {[%clk 0:00:02]}  Rh4 {[%clk 0:00:03]} 0-1


[Site "https://www.chess.com"]

[Event "Titled Tuesday Blitz December 06 Early 2022"]
[White "Tanenbaum, Zachary"]
[Black "Jain, Naveen"]
[WhiteFideId "2060850"]
[BlackFideId "5003970"]
[WhiteElo "2175"]
[BlackElo "2036"]
[Result "1-0"]
[Round "02"]
[TimeControl "180+1"]
[Date "2022.12.07"]
[WhiteClock "0:00:24"]
[BlackClock "0:00:09"]

1. e4 {[%clk 0:02:50]}  Nf6 {[%clk 0:02:59]} 2. e5 {[%clk 0:02:50]}  Nd5 {[%clk 0:02:59]} 3. d4 {[%clk 0:02:50]}  d6 {[%clk 0:02:58]} 4. Nf3 {[%clk 0:02:51]}  dxe5 {[%clk 0:02:58]} 5. Nxe5 {[%clk 0:02:51]}  c6 {[%clk 0:02:58]} 6. Be2 {[%clk 0:02:50]}  Bf5 {[%clk 0:02:57]} 7. c4 {[%clk 0:02:48]}  Nb4 {[%clk 0:02:54]} 8. Na3 {[%clk 0:02:45]}  Nd7 {[%clk 0:02:53]} 9. Nf3 {[%clk 0:02:43]}  e6 {[%clk 0:02:43]} 10. O-O {[%clk 0:02:42]}  Be7 {[%clk 0:02:42]} 11. Bd2 {[%clk 0:02:42]}  O-O {[%clk 0:02:40]} 12. Qb3 {[%clk 0:02:41]}  a5 {[%clk 0:02:35]} 13. c5 {[%clk 0:02:22]}  Qc7 {[%clk 0:01:33]} 14. Bxb4 {[%clk 0:02:18]}  axb4 {[%clk 0:01:32]} 15. Qxb4 {[%clk 0:02:19]}  Nf6 {[%clk 0:01:32]} 16. Nc4 {[%clk 0:02:16]}  Nd5 {[%clk 0:01:30]} 17. Qd2 {[%clk 0:02:08]}  Bf6 {[%clk 0:01:29]} 18. Nfe5 {[%clk 0:02:06]}  Rfd8 {[%clk 0:01:18]} 19. Nd6 {[%clk 0:02:04]}  Rxd6 {[%clk 0:01:04]} 20. cxd6 {[%clk 0:02:03]}  Qxd6 {[%clk 0:01:05]} 21. Nf3 {[%clk 0:01:41]}  h6 {[%clk 0:01:00]} 22. a3 {[%clk 0:01:40]}  Nf4 {[%clk 0:00:53]} 23. Rfe1 {[%clk 0:01:30]}  Be4 {[%clk 0:00:50]} 24. Rad1 {[%clk 0:01:25]}  Rd8 {[%clk 0:00:37]} 25. Qe3 {[%clk 0:01:22]}  Nxe2+ {[%clk 0:00:31]} 26. Qxe2 {[%clk 0:01:22]}  Bxf3 {[%clk 0:00:29]} 27. Qxf3 {[%clk 0:01:22]}  Bxd4 {[%clk 0:00:29]} 28. Rd2 {[%clk 0:01:17]}  e5 {[%clk 0:00:28]} 29. g3 {[%clk 0:01:13]}  b5 {[%clk 0:00:27]} 30. Rc1 {[%clk 0:01:11]}  c5 {[%clk 0:00:27]} 31. b3 {[%clk 0:01:09]}  b4 {[%clk 0:00:26]} 32. axb4 {[%clk 0:01:08]}  cxb4 {[%clk 0:00:26]} 33. Rc6 {[%clk 0:01:07]}  Qe7 {[%clk 0:00:25]} 34. Qe4 {[%clk 0:01:01]}  Qg5 {[%clk 0:00:21]} 35. Rdc2 {[%clk 0:00:55]}  Bc3 {[%clk 0:00:19]} 36. Kg2 {[%clk 0:00:52]}  h5 {[%clk 0:00:19]} 37. h4 {[%clk 0:00:50]}  Qe7 {[%clk 0:00:15]} 38. Ra2 {[%clk 0:00:38]}  Qd7 {[%clk 0:00:15]} 39. Raa6 {[%clk 0:00:33]}  Qd5 {[%clk 0:00:09]} 40. Qxd5 {[%clk 0:00:31]}  Rxd5 {[%clk 0:00:10]} 41. Rc7 {[%clk 0:00:26]}  Rd6 {[%clk 0:00:09]} 42. Rxd6 {[%clk 0:00:24]} 1-0


[Site "https://www.chess.com"]

[Event "Titled Tuesday Blitz December 06 Early 2022"]
[White "Tarlabasi, Emirhan"]
[Black "Forgacs, Attila Jr."]
[WhiteFideId "6350275"]
[BlackFideId "773654"]
[WhiteElo "2200"]
[BlackElo "2168"]
[Result "0-1"]
[Round "02"]
[TimeControl "180+1"]
[Date "2022.12.07"]
[WhiteClock "0:00:39"]
[BlackClock "0:00:18"]

1. Nf3 {[%clk 0:03:00]}  Nf6 {[%clk 0:02:59]} 2. c4 {[%clk 0:03:01]}  g6 {[%clk 0:02:59]} 3. b3 {[%clk 0:03:02]}  Bg7 {[%clk 0:03:00]} 4. Bb2 {[%clk 0:03:03]}  O-O {[%clk 0:03:01]} 5. g3 {[%clk 0:03:03]}  d6 {[%clk 0:03:02]} 6. d4 {[%clk 0:03:04]}  Nc6 {[%clk 0:03:02]} 7. Bg2 {[%clk 0:03:04]}  e5 {[%clk 0:03:02]} 8. O-O {[%clk 0:03:03]}  Qe7 {[%clk 0:02:58]} 9. Nc3 {[%clk 0:03:03]}  exd4 {[%clk 0:02:56]} 10. Nxd4 {[%clk 0:03:03]}  Nxd4 {[%clk 0:02:57]} 11. Qxd4 {[%clk 0:03:04]}  Bf5 {[%clk 0:02:53]} 12. e4 {[%clk 0:02:59]}  Nxe4 {[%clk 0:02:37]} 13. Qxg7+ {[%clk 0:02:59]}  Kxg7 {[%clk 0:02:37]} 14. Nd5+ {[%clk 0:02:59]}  Qe5 {[%clk 0:02:38]} 15. Bxe5+ {[%clk 0:02:58]}  dxe5 {[%clk 0:02:39]} 16. Nxc7 {[%clk 0:02:58]}  Rac8 {[%clk 0:02:33]} 17. Nd5 {[%clk 0:02:59]}  Nc5 {[%clk 0:02:05]} 18. Rad1 {[%clk 0:02:56]}  Rfd8 {[%clk 0:01:51]} 19. Ne7 {[%clk 0:02:42]}  Rxd1 {[%clk 0:01:50]} 20. Rxd1 {[%clk 0:02:41]}  Rc7 {[%clk 0:01:51]} 21. Nxf5+ {[%clk 0:02:40]}  gxf5 {[%clk 0:01:51]} 22. Rd5 {[%clk 0:02:41]}  Nd7 {[%clk 0:01:47]} 23. Bh3 {[%clk 0:02:10]}  Kf6 {[%clk 0:01:45]} 24. f4 {[%clk 0:02:10]}  Ke6 {[%clk 0:01:26]} 25. g4 {[%clk 0:02:02]}  fxg4 {[%clk 0:01:21]} 26. Bxg4+ {[%clk 0:02:03]}  f5 {[%clk 0:01:21]} 27. Bh3 {[%clk 0:01:57]}  a6 {[%clk 0:01:10]} 28. Kf2 {[%clk 0:01:54]}  b5 {[%clk 0:01:09]} 29. fxe5 {[%clk 0:01:38]}  bxc4 {[%clk 0:01:06]} 30. bxc4 {[%clk 0:01:37]}  Rxc4 {[%clk 0:01:05]} 31. Rd6+ {[%clk 0:01:37]}  Ke7 {[%clk 0:01:02]} 32. Rxa6 {[%clk 0:01:32]}  Nxe5 {[%clk 0:01:00]} 33. Ke2 {[%clk 0:01:27]}  Ng4 {[%clk 0:00:57]} 34. a4 {[%clk 0:01:23]}  Rc2+ {[%clk 0:00:55]} 35. Kd3 {[%clk 0:01:22]}  Rxh2 {[%clk 0:00:54]} 36. Bf1 {[%clk 0:01:18]}  Rh1 {[%clk 0:00:48]} 37. Bg2 {[%clk 0:01:17]}  Rd1+ {[%clk 0:00:43]} 38. Ke2 {[%clk 0:01:15]}  Ra1 {[%clk 0:00:43]} 39. Bc6 {[%clk 0:01:11]}  h5 {[%clk 0:00:41]} 40. a5 {[%clk 0:01:10]}  h4 {[%clk 0:00:41]} 41. Ra7+ {[%clk 0:01:10]}  Kd6 {[%clk 0:00:40]} 42. Bf3 {[%clk 0:01:08]}  h3 {[%clk 0:00:40]} 43. a6 {[%clk 0:01:08]}  h2 {[%clk 0:00:39]} 44. Ra8 {[%clk 0:01:03]}  Ra2+ {[%clk 0:00:35]} 45. Kd1 {[%clk 0:00:57]}  h1=Q+ {[%clk 0:00:27]} 46. Bxh1 {[%clk 0:00:57]}  Nf2+ {[%clk 0:00:28]} 47. Kc1 {[%clk 0:00:56]}  Nxh1 {[%clk 0:00:29]} 48. a7 {[%clk 0:00:55]}  Kc7 {[%clk 0:00:29]} 49. Kb1 {[%clk 0:00:54]}  Kb7 {[%clk 0:00:20]} 50. Rh8 {[%clk 0:00:52]}  Rxa7 {[%clk 0:00:19]} 51. Rxh1 {[%clk 0:00:52]}  Kc6 {[%clk 0:00:20]} 52. Kc2 {[%clk 0:00:52]}  Rd7 {[%clk 0:00:19]} 53. Rh5 {[%clk 0:00:49]}  Rd5 {[%clk 0:00:18]} 54. Kc3 {[%clk 0:00:49]}  Kd6 {[%clk 0:00:19]} 55. Rh4 {[%clk 0:00:48]}  Ke5 {[%clk 0:00:18]} 56. Kc4 {[%clk 0:00:49]}  Rd8 {[%clk 0:00:18]} 57. Kc3 {[%clk 0:00:48]}  f4 {[%clk 0:00:18]} 58. Rh7 {[%clk 0:00:41]}  Ke4 {[%clk 0:00:18]} 59. Re7+ {[%clk 0:00:39]}  Kf3 {[%clk 0:00:19]} 60. Kc2 {[%clk 0:00:39]}  Kf2 {[%clk 0:00:19]} 61. Kc1 {[%clk 0:00:39]}  f3 {[%clk 0:00:19]} 62. Rf7 {[%clk 0:00:38]}  Kg2 {[%clk 0:00:19]} 63. Rg7+ {[%clk 0:00:39]}  Kf1 {[%clk 0:00:19]} 64. Rf7 {[%clk 0:00:40]}  f2 {[%clk 0:00:20]} 65. Rf6 {[%clk 0:00:39]}  Rd5 {[%clk 0:00:17]} 66. Kc2 {[%clk 0:00:38]}  Ke2 {[%clk 0:00:17]} 67. Re6+ {[%clk 0:00:38]}  Kf3 {[%clk 0:00:17]} 68. Rf6+ {[%clk 0:00:39]}  Ke3 {[%clk 0:00:18]} 69. Re6+ {[%clk 0:00:39]}  Kf4 {[%clk 0:00:18]} 0-1


[Site "https://www.chess.com"]